{"text_format":"2","workbook":"xlsx","n_sheets":1,"sheets":["HEJ"],"not_rendered":{"charts":0,"images":0,"macros":0,"external_links":0,"defined_names":3,"comments":1,"pivot_tables":0},"unopened":[],"bounds":{"document_bytes":16777216,"sheet_cells":100000,"run_cost":"one","rows_first":2000,"rows_last":500,"rows_between":2000,"halvings":0,"cell_chars":16384,"cell_head_chars":4096},"cells_cut":0,"cells_raw":0,"read":"whole","date_system":"1900"}

{"sheet":"HEJ","index":0,"n_rows":69,"n_cols":24,"rows_kept":69,"cut":false,"hidden":false,"merged":[[0,0,0,21],[2,0,2,21],[4,0,4,21],[5,0,5,13],[6,0,6,13],[7,0,7,21],[8,0,8,13],[9,0,9,13],[10,0,10,21],[11,0,11,13],[12,0,12,21],[13,0,13,21],[14,0,14,14],[15,0,15,21],[16,0,16,21],[17,0,17,21],[18,0,20,0],[18,2,18,21],[19,1,20,1],[19,2,20,2],[19,3,19,5],[19,6,19,8],[19,10,19,13],[19,14,19,15],[19,17,19,18],[19,19,19,20],[19,21,20,21],[20,3,21,3],[20,4,21,4],[20,5,21,5],[20,6,21,6],[20,7,21,7],[20,8,21,8],[20,9,21,9],[20,10,21,10],[20,11,21,11],[20,12,21,12],[20,13,21,13],[20,14,21,14],[20,15,21,15],[20,16,21,16],[20,17,21,17],[20,18,21,18],[20,19,21,19],[20,20,21,20],[37,0,37,4],[38,0,39,4],[40,0,40,4],[41,0,41,4],[42,0,42,4],[43,0,43,4],[44,0,44,4],[46,0,46,10],[47,0,47,4],[48,0,48,4],[49,0,49,4],[50,0,50,4],[51,0,51,7],[52,0,52,10],[53,0,53,1],[54,0,54,10],[55,0,55,10],[56,0,56,10],[57,0,57,10],[58,0,58,7],[59,0,59,2],[61,0,61,10],[62,0,62,1],[62,3,62,4],[62,8,62,9],[63,0,63,1],[63,3,63,4],[63,8,63,9],[64,0,64,1],[64,3,64,4],[64,8,64,9],[65,0,65,1],[65,3,65,4],[65,8,65,9],[66,0,66,9],[68,0,68,9]]}
["Relatório Resumido da Execução Orçamentária e Financeira por Contrato de Gestão"]
[]
["Mês/Ano: JANEIRO a ABRIL/2025"]
[]
["Órgão Contratante: SECRETARIA DE ESTADO DA SAÚDE – SES/GO."]
["CNPJ: 02.529.964/0001-57"]
[]
["Organização Social Contratada : FUNDAÇÃO DE APOIO AO HOSPITAL DAS CLÍNICAS DA UNIVERSIDADE FEDERAL DE GOIÁS – FUNDAHC"]
["CNPJ: 02.918.347/0001-43"]
[]
["Unidade Gerida: HOSPITAL ESTADUAL DE JATAÍ Dr. SERAFIM DE CARVALHO – HEJ"]
[]
["Termo de Colaboração nº: 001/2020 - SES 8º Termo Aditivo;  17º Apostilamento (Jan25)  / 18º Apostilamento (Fev25) / 19º Apostilamento (Mar25) / 20º Apostilamento (Abr25)"]
["Vigência do Contrato de Gestão: 8º Termo Aditivo: Início 30/11/2024 Término 30/10/2025"]
[]
["Previsão de Repasse Mensal do Termo de Colaboração /ADITIVO - Custeio : R$ 10.721.616,10 Processo nº: 202000010023569"]
["Previsão de Repasse Mensal do Termo de Colaboração /ADITIVO - Investimentos : R$ Processo nº: 202500010004909\n"]
["Em reais"]
["Mês",null,"Comparativo do Estimado com a Execução Orçamentária e Financeira"]
[null,"Valor Mensal Estimado no Contrato de Gestão","1. Valor Mensal Estimado no Contrato de Gestão - Custeio","2. Empenhado no mês",null,null,"3. Liquidado no mês",null,null,"4. Glosas Aplicadas","5. Montante pago no mês (informar o mês a que se refere, quando ocorrer repasses para mais de uma competência, inserir linha para cada mês)",null,null,null,"6. Guia de Recolhimento (Devolução - informar na Nota Explicativa - Ex.: processo e mês a que se refere)",null,"7. Guias de Receita (Devolução de Recursos de Exercícios Anteriores)","8. Pagamentos (repasses – Restos a Pagar) (Informar na Nota Explicativa)",null,"9. Pagamentos de Despesas de Exercícios Anteriores - DEA (informar a natureza, processo e outros esclarecimentos sobre o repasse efetuado para a contratada, objetivamente, na Nota Explicativa)",null,"10. Total de Pagamentos no mês 10=5-(6+7) + 8 + 9"]
[null,null,null,"Custeio","Investimentos","Repasses Adicionais (Ver Legenda)","Custeio","Investimentos","Repasses Adicionais (Ver Legenda)","Custeio","Referência/Parcela","Custeio","Investimentos","Repasses Adicionais (Ver Legenda)","Custeio","Investimentos",null,"Custeio","Investimentos","Custeio","Investimento"]
[]
["2025-01-01",11132548.27,11132548.27,68982198.11,null,null,20743282.2,null,null,null,"jan25",10371616.1,null,0,null,null,null,272266.09,null,435703.17,null,{"$f":"L23+R23+T23","v":11079585.36},{"$f":"SUM(D23:F23)","v":68982198.11},{"$f":"SUM(G23:I23)","v":20743282.2}]
["2025-02-01",11135284.45,11135284.45,410932.17,null,null,10782548.27,null,null,null,"fev25",10371616.1,{"$nulls":9},{"$f":"L24+L25+L26","v":11955447.8}]
["2025-02-01",{"$nulls":9},"jan25",410932.17]
["2025-02-01",{"$nulls":9},"mar25",1172899.53]
["2025-03-01",11112307.36,11112307.36,413668.35,318600,null,11058442.74,318600,null,350000,"jan25",273158.29,318600,{"$nulls":8},{"$f":"L27+L28+L29+L30+M27","v":11377042.74}]
["2025-03-01",{"$nulls":9},"fev25",413668.35]
["2025-03-01",{"$nulls":9},"mar25",9198716.57]
["2025-03-01",{"$nulls":9},"abr25",1172899.53]
["2025-04-01",11154260.82,11154260.82,38267266.95,512082,null,10600109.85,null,null,350000,"jan25",76841.71,{"$nulls":9},{"$f":"L31+L32+L33+L34+L35","v":19798826.42}]
["2025-04-01",{"$nulls":9},"fev25",350000]
["2025-04-01",{"$nulls":9},"mar25",390691.26]
["2025-04-01",{"$nulls":9},"abr25",10371616.1]
["2025-04-01",{"$nulls":9},"mai25",8609677.35]
[null,{"$f":"SUM(B23:B35)","v":44534400.9},{"$f":"SUM(C23:C35)","v":44534400.9},{"$f":"SUM(D23:D35)","v":108074065.58},830682,{"$f":"SUM(F23:F23)","v":0},{"$f":"SUM(G23:G35)","v":53184383.06},318600,{"$f":"SUM(I23:I23)","v":0},{"$f":"SUM(J23:J30)","v":350000},{"$f":"SUM(K23:K23)","v":0},{"$f":"SUM(L23:L35)","v":53184333.06},318600,{"$f":"SUM(N23:N23)","v":0},{"$f":"SUM(O23:O23)","v":0},{"$f":"SUM(P23:P23)","v":0},{"$f":"SUM(Q23:Q23)","v":0},{"$f":"SUM(R23:R23)","v":272266.09},{"$f":"SUM(S23:S23)","v":0},{"$f":"SUM(T23:T23)","v":435703.17},{"$f":"SUM(U23:U23)","v":0},{"$f":"V23+V24+V27+V31","v":54210902.32},{"$f":"SUM(#REF!)","v":{"$error":"#REF!"}},{"$f":"SUM(#REF!)","v":{"$error":"#REF!"}}]
[]
["Legenda: Repasses Adicionais - Valores adicionais ao pactuado no Contrato de Gestão - Despesas prevista  Contratualmente - Executadas conforme solicitadas pela Organização Social no decorrer da vigência :  "]
["Descrição"]
[]
["Ressarcimentos (Rescisões Trabalhista, Serviço Hospitalar e Ambulatorial, Leitos Extras, Material Órtese e Prótese ( OPME e Outros ). "]
["Mandados Judiciais ."]
["Repasse Via Regularização de Despesas. "]
["Encontro de Contas Final do Contrato."]
["Outros."]
[]
["Detalhamento - Glosas"]
["Descrição",{"$nulls":4},"Valor R$","Natureza da Despesa","Processo","Competência do DESPESA (mês/ano)","Período da APLICAÇÃO da Glosa (mês/ano)- ","Área Responsável"]
["Valor provisionado para ajuste posterior ",{"$nulls":4},350000,"3.3.50.85.02 ",202000010023569,"2025-03-01","2025-03-01","SES/CGC/SUPECC-19837 "]
["Valor provisionado para ajuste posterior ",{"$nulls":4},350000,"3.3.50.85.02 ",202000010023569,"2025-04-01","2025-04-01","SES/CGC/SUPECC-19837 "]
["Total Geral",{"$nulls":4},{"$f":"SUM(F49:F50)","v":700000}]
[]
[]
["Nota Explicativa: "]
["Valor Estimado no Contrato de Gestão = Custeio R$ 10.721.616,10 +  R$ 410.932,17 17º Apostilamento JAN25 / R$ 413.668,35 18º Apostilamento FEV25 / R$ 390.691,26 19º Apostilamento MAR25 / R$ 432.644,72 20º Apostilamento ABR25.\n\n1. Valor Mensal Estimado no Contrato de Gestão - Custeio = Custeio  R$ 10.721.616,10 + R$ 410.932,17 17º Apostilamento JAN25 / R$ 413.668,35 18º Apostilamento FEV25  / R$ 390.691,26 19º Apostilamento MAR25 / R$ 432.644,72 20º Apostilamento ABR25.\n\n3. Valor informado pela área técnica – GEFIN SEI Nº 202500010016855.\n\n4. Valor provisionado conforme Solicitação de Pagamento : JAN/25 parcial SEI Nº 69062290 ; JAN/25 consolidado SEI Nº 71121130 ; JAN/25 Consolidado complementar SEI Nº 73134945; FEV/25 parcial SEI Nº 69922294 ; FEV/25 consolidado SEI Nº 73122169 ; MAR/25 parcial SEI Nº 70898464; MAR/25 Consolidado SEI Nº 73721180; ABR/25 Parcial SEI Nº 72183142; ABR/25 Consolidado SEI Nº 75049093"]
["Conforme diretrizes descritas no Despacho 2688 (SEI Nº 65101374), Processo SEI Nº 202400010067105, o valor dos Servidores cedidos, Auxílio Moradia, Bolsa de Residência médica e Gratificação de Servidores Estatutários serão apenas de caráter informativo.\n\nInformamos que o Termo de Colaboração nº: 001/2020 - SES 8º Termo Aditivo não possui servidores cedidos e nem programa de residência."]
["8. Pagamentos (repasses – Restos a Pagar)                                                                                                                                                                                                                                                                                                                                        - PAGO em JAN/25 - Repasse referente ao Custeio valor total R$ 272.266,09, sendo:\n\n                                                                Referência: dezembro/2024 Ordem de Pagamento 2024.2850.061.00128.003...........R$ 217.453,22 Custeio consolidado Quitado em 10/01/25 SEI Nº 71294751\n\n                                                                Referência: dezembro/2024 Ordem de Pagamento 2024.2850.061.00128.004...........R$ 54.812,87 Fundo Rescisório Quitado em 10/01/25 SEI Nº 71294751"]
["9. Pagamentos de Despesas de Exercícios Anteriores - DEA\n\n- PAGO em JAN/25   - 16º Apostilamento: Piso Nacional de Enfermagem - Referência dezembro/24 Ordem de Pagamento 2025.2850.070.0020.001 ........R$ 435.703,17 Quitada em 31/01/25 Siofinet"]
[]
[]
[]
["Demonstrativo de investimento repassados no período de janeiro e fevereiro/2025"]
["Processo",null,"Data de Pagto","Dot.Emp.Op",null,"Grupo","Fonte","Natureza","Observação",null,"Valor Pago "]
["202500010004909",null,"18/03/25                          SEI 72028325 ","2025.2850.161.00082.001",null,4,15000100,"4.4.50.42.05","Aquisição de 02(dois) Aparelhos de Ultrassom Portátil",null,318600]
[]
[]
["Total Geral HEJ",{"$nulls":9},{"$f":"SUM(K64:K66)","v":318600}]
[]
["Fonte: Contratos de Gestão e Aditivos contidos no processo e Portal Transparência: saude.go.gov.br e Sistema SIOFINET - Portal.go.gov.br. "]